[Event "CZE-ch U10 Open 2023"]
[Site "Teplice"]
[Date "2023.03.11"]
[Round "1.7"]
[White "Galia, Simon"]
[Black "Kozusnik, Jan"]
[Result "1-0"]
[ECO "B01"]
[WhiteElo "1071"]
[BlackElo "1286"]
[Annotator "NA RC COMBH"]
[PlyCount "27"]
[EventDate "2023.03.09"]
[EventType "swiss"]
[EventCountry "CZE"]
[SourceTitle "playchess.com"]
[Source "ChessBase"]
[SourceQuality "1"]
[TimeControl "40/5400+30:1800+30"]

1. e4 {[%emt 0:00:35]} d5 {[%emt 0:00:19]} 2. exd5 {[%emt 0:00:14]} Nf6 {[%emt 0:00:14]} 3. d4 {[%emt 0:00:24]} Nxd5 {[%emt 0:00:26]} 4. Nf3 {[%emt 0:00:31]} Bg4 {[%emt 0:00:30]} 5. c4 {[%emt 0:00:38]} Nb6 {[%emt 0:00:33]} 6. c5 {[%emt 0:00:56]} Nd5 {[%emt 0:00:46]} 7. Qb3 {[%emt 0:01:12]} b6 {[%emt 0:08:05]} 8. Ne5 {[%emt 0:02:11]} Be6 {[%emt 0:15:04]} 9. Bb5+ {[%emt 0:03:33]} Nd7 {[%emt 0:03:17]} 10. Bxd7+ {[%emt 0:02:02]} Bxd7 {[%emt 0:01:00]} 11. Qxd5 {[%emt 0:01:06]} e6 {[%emt 0:00:25]} 12. Qf3 {[%emt 0:01:15]} f6 {[%emt 0:01:14]} 13. Nxd7 {[%emt 0:00:30]} Kxd7 {[%emt 0:00:16]} 14. b4 {[%emt 0:01:15]} 1-0

[Event "CZE-ch U10 Open 2023"]
[Site "Teplice"]
[Date "2023.03.11"]
[Round "1.11"]
[White "Kupka, Frantisek"]
[Black "Fadrny, Jonas"]
[Result "1-0"]
[ECO "C02"]
[WhiteElo "1988"]
[BlackElo "1247"]
[Annotator "TA"]
[PlyCount "63"]
[EventDate "2023.03.09"]
[EventType "swiss"]
[EventCountry "CZE"]
[SourceTitle "playchess.com"]
[Source "ChessBase"]
[SourceQuality "1"]
[TimeControl "40/5400+30:1800+30"]

{[%evp 13,63,31,43,0,-6,0,-7,-29,61,54,56,58,39,30,489,492,487,489,482,480,472,459,468,458,677,658,717,728,702,698,729,735,870,872,902,902,891,889,1623,1610,29979,891,884,813,880,879,884,856,870,849,779,758]} 1. e4 {[%emt 0:00:02]} e6 {[%emt 0:00:08]} 2. d4 {[%emt 0:00:10]} d5 {[%emt 0:00:08]} 3. e5 {[%emt 0:00:09]} c5 {[%emt 0:00:47]} 4. c3 {[%emt 0:00:18]} Nc6 {[%emt 0:00:39]} 5. Nf3 {[%emt 0:00:53]} cxd4 {[%emt 0:02:30]} 6. cxd4 {[%emt 0:01:27]} Bb4+ {[%emt 0:00:24]} 7. Bd2 {[%emt 0:01:31]} Qb6 {[%emt 0:01:03]} 8. Nc3 {[%emt 0:05:08] C02: French: Advance Variation.} (8. Bxb4 $14 Qxb4+ 9. Qd2) 8... Nxd4 $11 {[%emt 0:01:06]} 9. Nxd4 {[%emt 0:02:18]} Qxd4 {[%emt 0:00:32]} 10. Bb5+ $1 {[%emt 0:00:52] The position is equal.} Bd7 {[%emt 0:00:34]} (10... Kf8 $11) 11. Bxd7+ $14 {[%emt 0:00:37]} Kxd7 {[%emt 0:00:25]} 12. Qa4+ $1 {[%emt 0:01:00]} Kd8 {[%emt 0:00:43] [#] Strongly threatening ...Bxc3.} 13. O-O-O $146 {[%emt 0:02:21] Black must now prevent Bg5+.} ({Predecessor:} 13. Qc2 Qxe5+ 14. Ne2 Bxd2+ 15. Qxd2 Nf6 16. O-O Ke7 17. Rfc1 Rhd8 18. Rc2 Kf8 19. Nd4 {0-1 Molina,V (802)-Lombardi,D (871) SN-2016-0-00802}) 13... Bxc3 $4 {[%emt 0:00:28][%mdl 8192] This costs Black the game.} (13... Qc4 $1 $11 {and Black stays safe.}) 14. Bg5+ $18 {[%emt 0:00:56]} f6 {[%emt 0:00:40]} 15. Rxd4 {[%emt 0:00:51]} Bxd4 {[%emt 0:00:35]} 16. Bxf6+ {[%emt 0:01:18]} Nxf6 {[%emt 0:02:13]} 17. Qxd4 {[%emt 0:01:24]} Nd7 {[%emt 0:00:54]} 18. Qg4 {[%emt 0:02:22][%csl LRe6,LRg7]} g6 {[%emt 0:01:39]} (18... Rc8+ $142 19. Kb1 Re8 20. Qxg7 Rc7 21. Qxh7 Nxe5) 19. Qxe6 {[%emt 0:01:03]} Re8 {[%emt 0:00:48]} 20. Qxd5 {[%emt 0:01:18] [#] e6 would be deadly.} Rxe5 {[%emt 0:01:00]} 21. Qxb7 {[%emt 0:02:01]} Rc8+ {[%emt 0:00:48]} 22. Kb1 {[%emt 0:00:53]} Rb8 {[%emt 0:01:40]} 23. Qxa7 {[%emt 0:01:17] White wants to mate with Rd1.} Re2 {[%emt 0:01:35]} 24. b3 {[%emt 0:01:39] Rd1 would kill now.} Re7 {[%emt 0:01:20]} 25. Rd1 {[%emt 0:02:28][%cal Ra7b8]} Kc8 {[%emt 0:01:24]} 26. Qa6+ {[%emt 0:02:53]} Rb7 {[%emt 0:00:18]} 27. Qc6+ {[%emt 0:01:32]} (27. Rc1+ $142 Kb8 28. Qd6+ Ka8 29. Qxe7 Nb8 30. Qa3+ Ra7 31. Qb4 Rb7 32. Qa5+ Na6 33. Qxa6+ Kb8 34. Qd6+ Ka8 35. Rc8+ Ka7 36. Qc6 h6 37. Qa4+ Kb6 38. Rc6#) 27... Rc7 {[%emt 0:00:37] White is clearly winning.} 28. Qa8+ {[%emt 0:01:20]} Nb8 {[%emt 0:00:11]} 29. Qd5 {[%emt 0:02:21]} Rcd7 {[%emt 0:02:00]} 30. Qg8+ {[%emt 0:01:59]} Kb7 {[%emt 0:00:38]} 31. Rxd7+ {[%emt 0:03:02]} Rxd7 {[%emt 0:00:15]} 32. Kb2 {[%emt 0:01:37] Weighted Error Value: White=0.06 (flawless) /Black=1.73} 1-0

[Event "CZE-ch U10 Open 2023"]
[Site "Teplice"]
[Date "2023.03.12"]
[Round "2.1"]
[White "Filindash, Nikita"]
[Black "Fadrny, Jachym"]
[Result "1-0"]
[ECO "E70"]
[WhiteElo "2021"]
[BlackElo "1279"]
[Annotator "TA"]
[PlyCount "61"]
[EventDate "2023.03.09"]
[EventType "swiss"]
[EventCountry "CZE"]
[SourceTitle "playchess.com"]
[Source "ChessBase"]
[SourceQuality "1"]
[TimeControl "40/5400+30:1800+30"]

{[%evp 9,61,56,77,60,64,63,83,72,89,76,92,84,287,298,354,354,372,320,322,309,608,597,572,500,500,430,625,613,853,419,416,375,347,330,368,368,376,329,331,314,314,296,679,602,615,571,604,490,581,577,1174,1164,2289,2257]} 1. d4 {[%emt 0:00:04]} Nf6 {[%emt 0:00:10]} 2. c4 {[%emt 0:00:06]} g6 {[%emt 0:00:05]} 3. Nc3 {[%emt 0:00:08]} Bg7 {[%emt 0:01:31]} 4. e4 {[%emt 0:00:15]} Nc6 {[%emt 0:01:26]} 5. Nf3 {[%emt 0:00:49]} d6 {[%emt 0:00:56]} 6. Be2 {[%emt 0:00:33] E90: King's Indian: Classical: Early deviations and 6 h3.} Bg4 {[%emt 0:00:50]} 7. d5 {[%emt 0:01:07]} Bxf3 {[%emt 0:00:51][%mdl 64] Remove Defender} 8. Bxf3 {[%emt 0:00:14] White is better.} Ne5 {[%emt 0:00:40] [#]} 9. Be2 $1 {[%emt 0:00:11]} O-O 10. O-O {[%emt 0:00:47]} Nfd7 $2 {[%emt 0:01:54] [#]} (10... Re8 $16 {keeps fighting.}) 11. f4 $146 {[%emt 0:00:19]} ({Predecessor:} 11. Bd2 Nb6 12. b3 Ned7 13. Rc1 Nc5 14. Qc2 e6 15. Rfd1 Bxc3 16. Bxc3 Re8 17. Bf3 Nbd7 {1-0 Mbakhwa,F-Tatolo,K Gaborone Bill Doctor Year op 2010 (6)}) 11... Nxc4 {[%emt 0:06:03]} 12. Bxc4 {[%emt 0:00:14]} Nc5 {[%emt 0:01:33]} 13. Re1 {[%emt 0:00:47]} c6 {[%emt 0:00:44]} 14. dxc6 {[%emt 0:07:14]} Qb6 $2 {[%emt 0:00:47] [#]} (14... bxc6 15. e5 Qb6) 15. Nd5 {[%emt 0:02:05][%csl LRb6,LRe7]} Qd8 {[%emt 0:02:45]} 16. cxb7 {[%emt 0:01:51]} Rb8 {[%emt 0:00:19]} 17. Be3 {[%emt 0:03:49]} Bxb2 {[%emt 0:01:37]} (17... e6 $142 18. Nc3 Rxb7) 18. Rb1 {[%emt 0:00:29]} Ba3 {[%emt 0:01:42]} 19. Bc1 {[%emt 0:02:59]} (19. f5 $142 e6 20. fxe6 fxe6 21. Nf4) 19... Bxc1 {[%emt 0:00:56] Black is weak on the light squares} 20. Qxc1 {[%emt 0:00:15]} e6 {[%emt 0:02:39]} 21. Nc3 {[%emt 0:03:23]} Nxb7 {[%emt 0:03:41]} 22. Qd2 {[%emt 0:02:28]} Qa5 {[%emt 0:04:40]} 23. Rb5 {[%emt 0:00:52] Prevents Qc5+} Qc7 {[%emt 0:00:08]} 24. Bf1 {[%emt 0:01:00]} Rfc8 {[%emt 0:02:02]} 25. Reb1 {[%emt 0:06:48]} Qd7 $2 {[%emt 0:13:34]} (25... a6) 26. Qb2 {[%emt 0:01:22] White is clearly winning.} Rc7 {[%emt 0:07:30]} 27. a4 {[%emt 0:03:08]} Qc6 {[%emt 0:09:20]} 28. Rb3 {[%emt 0:04:29]} h6 {[%emt 0:18:06]} 29. Kh1 {[%emt 0:07:33]} Rd7 {[%emt 0:01:50]} 30. Bb5 {[%emt 0:00:19]} Qc7 {[%emt 0:01:33]} 31. Bxd7 {[%emt 0:00:16][%mdl 64] Discovered Attack. Black got outplayed after the opening.   Weighted Error Value: White=0.48/Black=0.70} 1-0

[Event "CZE-ch U10 Open 2023"]
[Site "Teplice"]
[Date "2023.03.12"]
[Round "2.2"]
[White "Zelenka, Tomas"]
[Black "Kolar, Edvard"]
[Result "0-1"]
[ECO "B01"]
[WhiteElo "1272"]
[BlackElo "1518"]
[Annotator "NA RC COMBH"]
[PlyCount "88"]
[EventDate "2023.03.09"]
[EventType "swiss"]
[EventCountry "CZE"]
[SourceTitle "playchess.com"]
[Source "ChessBase"]
[SourceQuality "1"]
[TimeControl "40/5400+30:1800+30"]

1. e4 {[%emt 0:00:03]} d5 {[%emt 0:00:05]} 2. exd5 {[%emt 0:00:12]} Qxd5 {[%emt 0:00:08]} 3. Nc3 {[%emt 0:00:08]} Qd6 {[%emt 0:00:14]} 4. d4 {[%emt 0:00:10]} c6 {[%emt 0:00:28]} 5. Nf3 {[%emt 0:00:11]} Bg4 {[%emt 0:00:35]} 6. Be2 {[%emt 0:01:38]} Nf6 {[%emt 0:00:38]} 7. O-O {[%emt 0:01:12]} Nbd7 {[%emt 0:01:11]} 8. Bg5 {[%emt 0:05:48]} e6 {[%emt 0:02:51]} 9. Re1 {[%emt 0:02:35]} Be7 {[%emt 0:01:58]} 10. h3 {[%emt 0:04:13]} Bf5 {[%emt 0:03:15]} 11. Qd2 {[%emt 0:02:34]} Qc7 {[%emt 0:01:52]} 12. Rad1 {[%emt 0:00:58]} O-O {[%emt 0:01:35]} 13. Bd3 {[%emt 0:01:47]} Bxd3 {[%emt 0:00:59]} 14. Qxd3 {[%emt 0:00:14]} Rad8 {[%emt 0:02:02]} 15. Ne4 {[%emt 0:00:55]} c5 {[%emt 0:04:25]} 16. Bxf6 {[%emt 0:02:31]} Bxf6 {[%emt 0:00:47]} 17. Neg5 {[%emt 0:00:13]} Bxg5 {[%emt 0:00:58]} 18. Nxg5 {[%emt 0:00:13]} Nf6 {[%emt 0:01:20]} 19. c3 {[%emt 0:01:09]} h6 {[%emt 0:04:09]} 20. Ne4 {[%emt 0:03:52]} Nxe4 {[%emt 0:01:27]} 21. Rxe4 {[%emt 0:00:31]} Qb6 {[%emt 0:02:37]} 22. Qc2 {[%emt 0:00:55]} cxd4 {[%emt 0:03:08]} 23. cxd4 {[%emt 0:04:09]} Rc8 {[%emt 0:01:23]} 24. Qb1 {[%emt 0:00:18]} Rc6 {[%emt 0:02:11]} 25. Rd3 {[%emt 0:00:42]} Rfc8 {[%emt 0:00:34]} 26. Qe1 {[%emt 0:01:07]} Qxb2 {[%emt 0:01:42]} 27. Kh2 {[%emt 0:00:43]} Qxa2 {[%emt 0:00:44]} 28. Rg3 {[%emt 0:00:34]} Qd5 {[%emt 0:06:59]} 29. Qe3 {[%emt 0:00:43]} Rc3 {[%emt 0:02:43]} 30. Qe2 {[%emt 0:01:59]} Rc2 {[%emt 0:05:58]} 31. Qg4 {[%emt 0:01:20]} g5 {[%emt 0:04:09]} 32. Re5 {[%emt 0:01:16]} Qd8 {[%emt 0:01:51]} 33. Qh5 {[%emt 0:00:42]} Qxd4 {[%emt 0:04:20]} 34. Ree3 {[%emt 0:07:14]} Kg7 {[%emt 0:03:38]} 35. h4 {[%emt 0:02:34]} R8c4 {[%emt 0:08:30]} 36. Qf3 {[%emt 0:19:56]} Qxh4+ {[%emt 0:01:28]} 37. Rh3 {[%emt 0:00:16]} Qxf2 {[%emt 0:01:59]} 38. Qxb7 {[%emt 0:02:50]} Rc6 {[%emt 0:00:52]} 39. Rhg3 {[%emt 0:00:11]} Rc1 {[%emt 0:01:11]} 40. Rgf3 {[%emt 0:00:29]} Qh4+ {[%emt 0:02:39]} 41. Rh3 {[%emt 0:30:14]} Qf4+ {[%emt 0:30:13]} 42. Rhg3 {[%emt 0:00:11]} Qf1 {[%emt 0:01:13]} 43. Rh3 {[%emt 0:03:04]} Qg1+ {[%emt 0:00:14]} 44. Kg3 {[%emt 0:00:18]} Qxe3+ {[%emt 0:00:02]} 0-1

[Event "CZE-ch U10 Open 2023"]
[Site "Teplice"]
[Date "2023.03.12"]
[Round "2.3"]
[White "Vo, Daniel"]
[Black "Trejbal, Jindrich"]
[Result "0-1"]
[ECO "C41"]
[WhiteElo "1440"]
[BlackElo "1937"]
[Annotator "TA"]
[PlyCount "110"]
[EventDate "2023.03.09"]
[EventType "swiss"]
[EventCountry "CZE"]
[SourceTitle "playchess.com"]
[Source "ChessBase"]
[SourceQuality "1"]
[TimeControl "40/5400+30:1800+30"]

{[%evp 16,110,52,52,42,0,149,17,24,22,288,9,20,0,114,116,430,-128,-135,-621,-54,-65,-54,-135,-106,-109,-110,-109,-104,-98,-80,-83,-64,-79,-71,-200,-200,-192,-182,-664,-308,-310,-306,-298,-243,-292,-293,-317,-301,-297,-254,-320,-322,-472,-337,-325,-308,-304,-247,-325,-313,-307,-282,-300,-285,-285,-286,-320,-313,-386,-376,-410,-400,-381,-368,-528,-489,-652,-627,-736,-1014,-961,-772,-2559,-1311,-2101,-2093,-1909,-1918,-10662,-9423,-12840,-12839,-12844,-12844,-12845,-12846]} 1. e4 {[%emt 0:00:02]} e5 {[%emt 0:00:18]} 2. Nf3 {[%emt 0:00:08]} d6 {[%emt 0:00:19]} 3. d4 {[%emt 0:00:08]} exd4 {[%emt 0:00:19]} 4. Nxd4 {[%emt 0:00:08]} g6 {[%emt 0:00:36]} 5. Nc3 {[%emt 0:00:32]} Bg7 {[%emt 0:00:21]} 6. Bc4 {[%emt 0:00:17]} Ne7 {[%emt 0:00:36]} 7. Be3 {[%emt 0:00:12]} O-O {[%emt 0:00:38]} 8. O-O {[%emt 0:00:11]} Nbc6 {[%emt 0:02:18]} 9. Qd2 {[%emt 0:00:23]} Ne5 {[%emt 0:03:28] C46: 3 Nc3: Unusual Black 3rd moves.} 10. Bb3 {[%emt 0:10:27] [#]} (10. Be2 $5) 10... b6 $146 {[%emt 0:02:58] [#]} (10... c5 $1 $11 {keeps the balance.} 11. Nde2 Be6) ({Predecessor:} 10... a6 11. a3 Kh8 12. h3 Bd7 13. f4 N5c6 14. f5 Nxd4 15. Bxd4 gxf5 16. Bxg7+ Kxg7 17. Qg5+ {0-1 Arsic,D (1854)-Tomic,S (2082) SRB Central-ch op-B 4th 2011 (4)}) 11. f4 {[%emt 0:00:40]} (11. Bg5 $1 $16 Qd7 12. Ba4) 11... Ng4 $11 {[%emt 0:00:28] The position is equal.} 12. f5 {[%emt 0:00:26] Bg5 would be deadly.} (12. Rad1 $5 {[%cal Rf4f5]}) 12... Ba6 $2 {[%emt 0:13:05][%mdl 8192] [#]} (12... c5 $11 13. Nde2 Nxe3 14. Qxe3 gxf5) 13. Rf4 $2 {[%emt 0:00:45]} ({Only move:} 13. Bg5 $1 $18) 13... Nxe3 {[%emt 0:00:35]} 14. Qxe3 {[%emt 0:00:21] Threatens to win with f6.} Bh6 {[%emt 0:00:54]} (14... c5 $11 15. Ndb5 Bxb5) 15. f6 $1 $16 {[%emt 0:01:44][%cal Oe3f2]} Nc8 $2 {[%emt 0:02:38][%mdl 8192]} (15... Bxf4 $2 16. Qxf4 $18) (15... c5 $16) 16. Bd5 $2 {[%emt 0:00:31]} (16. Qg3 $18) 16... Qxf6 $17 {[%emt 0:04:47][%mdl 64] Pin} (16... Bxf4 $2 17. Qxf4 Kh8 18. Bxa8 $18) 17. Bxa8 $4 {[%emt 0:01:13][%mdl 8192]} (17. g3 $17 Bxf4 18. gxf4) 17... Qxf4 $2 {[%emt 0:02:37]} ({Better is} 17... Bxf4 $19 18. Qf3 Qxd4+ 19. Kh1 Be5) 18. Qxf4 $15 {[%emt 0:01:31]} Bxf4 {[%emt 0:00:48]} 19. Kf2 {[%emt 0:00:21] Inhibits Be3+.} (19. Nd5 $15 Be5 20. c3) 19... Ne7 {[%emt 0:02:04]} (19... Bxh2 20. g3 $14) 20. Nd5 {[%emt 0:01:21]} Nxd5 {[%emt 0:01:41]} (20... Bxh2 $2 21. Nxe7+ Kg7 22. Bc6 $18) 21. Bxd5 {[%emt 0:00:04]} Be5 $36 {[%emt 0:02:41][%mdl 2048] Black is really pushing. This pair of bishops is nice.} ({Don't do} 21... Bxh2 22. g3 $14) 22. c3 {[%emt 0:00:22]} Bxd4+ {[%emt 0:00:52]} ({But not} 22... Bxh2 23. g3 $16) 23. cxd4 $17 {[%emt 0:00:05][%mdl 4096] Endgame KRB-KRB} Kg7 {[%emt 0:02:21]} 24. Ke3 {[%emt 0:00:27]} f5 {[%emt 0:01:36]} 25. e5 {[%emt 0:00:21]} (25. Rc1 $17 {might work better.} c5 26. dxc5 dxc5 27. b4) 25... dxe5 $19 {[%emt 0:02:40]} 26. dxe5 {[%emt 0:00:09]} Re8 {[%emt 0:01:04]} 27. Kd4 $2 {[%emt 0:00:10]} (27. Kf4) 27... c5+ {[%emt 0:00:30]} (27... Rd8 $142 28. Rd1 c6 {[%mdl 64] Pin}) 28. Kc3 {[%emt 0:00:17]} Rxe5 {[%emt 0:00:10]} 29. Bf3 {[%emt 0:00:11]} Re7 {[%emt 0:03:57]} 30. Rd1 {[%emt 0:00:20]} Kf6 {[%emt 0:02:09]} 31. Rd6+ {[%emt 0:00:25]} Ke5 {[%emt 0:00:19]} 32. Rd1 {[%emt 0:00:59]} Ke6 {[%emt 0:01:05]} 33. Bd5+ {[%emt 0:00:22]} Kf6 {[%emt 0:00:44]} 34. Bf3 {[%emt 0:00:10]} (34. Rd2 $142) 34... Bb7 {[%emt 0:01:14]} 35. Bxb7 {[%emt 0:00:29]} Rxb7 {[%emt 0:00:12] KR-KR} 36. Rd6+ {[%emt 0:00:10]} Ke7 {[%emt 0:03:21]} 37. Rd2 {[%emt 0:00:33]} Rd7 {[%emt 0:00:26] Hoping for ...Rxd2.} 38. Re2+ {[%emt 0:00:06]} Kd6 {[%emt 0:01:29]} 39. Rd2+ {[%emt 0:00:37]} Kc6 {[%emt 0:01:01] aiming for ...Rxd2.} 40. Re2 {[%emt 0:00:05]} Rf7 {[%emt 0:01:31]} 41. Re6+ {[%emt 0:31:35]} Kd5 {[%emt 0:33:12]} 42. Re3 {[%emt 0:00:12]} f4 {[%emt 0:00:59]} 43. Rf3 {[%emt 0:00:22]} Ke4 {[%emt 0:02:39]} 44. Kd2 {[%emt 0:00:29]} g5 {[%emt 0:02:34]} 45. h3 {[%emt 0:00:09]} (45. Rh3 $142) 45... h5 {[%emt 0:01:57] Black is clearly winning.} 46. Rf2 {[%emt 0:00:31]} Rd7+ {[%emt 0:01:11]} 47. Kc2 {[%emt 0:00:08]} Ke3 {[%emt 0:02:20]} 48. Rf3+ {[%emt 0:00:06]} Ke2 {[%emt 0:00:48]} 49. Ra3 {[%emt 0:00:12]} Rd2+ {[%emt 0:00:53]} 50. Kc1 {[%emt 0:00:05]} Rd3 {[%emt 0:01:54]} 51. Rxa7 {[%emt 0:00:08]} Kf2 {[%emt 0:00:14]} 52. Rg7 {[%emt 0:00:11]} Kxg2 {[%emt 0:00:24]} 53. Rxg5+ {[%emt 0:00:03]} Rg3 {[%emt 0:00:16]} 54. Rxh5 {[%emt 0:00:03]} f3 {[%emt 0:00:19][%cal Bf4f3,Bf3f2][%mdl 32] ( -> ...f2)} 55. Rf5 {[%emt 0:00:04]} f2 {[%emt 0:00:29] Black used his chance.   Weighted Error Value: White=1.09/Black=0.75} 0-1

[Event "CZE-ch U10 Open 2023"]
[Site "Teplice"]
[Date "2023.03.12"]
[Round "2.4"]
[White "Kroulik, Stepan"]
[Black "Velim, Vojtech"]
[Result "1-0"]
[ECO "B13"]
[WhiteElo "1228"]
[BlackElo "1369"]
[Annotator "NA RC COMBH"]
[PlyCount "71"]
[EventDate "2023.03.09"]
[EventType "swiss"]
[EventCountry "CZE"]
[SourceTitle "playchess.com"]
[Source "ChessBase"]
[SourceQuality "1"]
[TimeControl "40/5400+30:1800+30"]

1. e4 {[%emt 0:00:16]} c6 {[%emt 0:00:08]} 2. d4 {[%emt 0:00:13]} d5 {[%emt 0:00:05]} 3. exd5 {[%emt 0:00:07]} cxd5 {[%emt 0:00:06]} 4. Nf3 {[%emt 0:00:16]} Bg4 {[%emt 0:00:52]} 5. Bb5+ {[%emt 0:01:02]} Nd7 {[%emt 0:01:07]} 6. O-O {[%emt 0:05:19]} e6 {[%emt 0:01:34]} 7. Nc3 {[%emt 0:04:54]} Bd6 {[%emt 0:00:58]} 8. Re1 {[%emt 0:00:59]} a6 {[%emt 0:07:35]} 9. Ba4 {[%emt 0:01:59]} Ne7 {[%emt 0:02:16]} 10. h3 {[%emt 0:01:26]} Bf5 {[%emt 0:04:21]} 11. Ne5 {[%emt 0:03:33]} Bxe5 {[%emt 0:00:31]} 12. dxe5 {[%emt 0:00:27]} b5 {[%emt 0:02:35]} 13. Bb3 {[%emt 0:01:13]} O-O {[%emt 0:02:14]} 14. Kh1 {[%emt 0:02:18]} Rc8 {[%emt 0:01:26]} 15. f4 {[%emt 0:06:26]} Ng6 {[%emt 0:03:55]} 16. Bd2 {[%emt 0:09:46]} Nc5 {[%emt 0:09:45]} 17. a3 {[%emt 0:04:13]} d4 {[%emt 0:05:00]} 18. Ne2 {[%emt 0:03:33]} Nxb3 {[%emt 0:01:54]} 19. cxb3 {[%emt 0:00:18]} Bc2 {[%emt 0:01:03]} 20. Qc1 {[%emt 0:00:35]} Bxb3 {[%emt 0:00:16]} 21. Qb1 {[%emt 0:00:29]} Nh4 {[%emt 0:01:31]} 22. Qd3 {[%emt 0:02:15]} Qd5 {[%emt 0:03:21]} 23. Qg3 {[%emt 0:02:29]} Qd8 {[%emt 0:02:38]} 24. Qxb3 {[%emt 0:02:31]} d3 {[%emt 0:02:25]} 25. Nc3 {[%emt 0:01:57]} Nf5 {[%emt 0:02:13]} 26. Qd1 {[%emt 0:02:40]} Nd4 {[%emt 0:02:22]} 27. Rc1 {[%emt 0:02:43]} Nc2 {[%emt 0:04:08]} 28. Rf1 {[%emt 0:00:44]} Qb6 {[%emt 0:02:00]} 29. Qf3 {[%emt 0:03:14]} Rfd8 {[%emt 0:00:44]} 30. f5 {[%emt 0:05:21]} Nd4 {[%emt 0:00:34]} 31. Qf2 {[%emt 0:01:39]} exf5 {[%emt 0:05:16]} 32. Be3 {[%emt 0:01:21]} Qc5 {[%emt 0:02:57]} 33. Rfd1 {[%emt 0:02:16]} Qxe5 {[%emt 0:01:52]} 34. Rxd3 {[%emt 0:00:47]} Nb3 {[%emt 0:01:25]} 35. Rxd8+ {[%emt 0:00:36]} Rxd8 {[%emt 0:00:10]} 36. Re1 1-0

[Event "CZE-ch U10 Open 2023"]
[Site "Teplice"]
[Date "2023.03.12"]
[Round "2.5"]
[White "Gernert, Tomas"]
[Black "Galia, Simon"]
[Result "1-0"]
[ECO "C42"]
[WhiteElo "1362"]
[BlackElo "1071"]
[Annotator "NA RC COMBH"]
[PlyCount "71"]
[EventDate "2023.03.09"]
[EventType "swiss"]
[EventCountry "CZE"]
[SourceTitle "playchess.com"]
[Source "ChessBase"]
[SourceQuality "1"]
[TimeControl "40/5400+30:1800+30"]

1. e4 {[%emt 0:00:03]} e5 {[%emt 0:00:44]} 2. Nf3 {[%emt 0:00:09]} Nf6 {[%emt 0:00:30]} 3. Nc3 {[%emt 0:01:56]} Bb4 {[%emt 0:00:44]} 4. d3 {[%emt 0:07:53]} Nc6 {[%emt 0:02:25]} 5. Bg5 {[%emt 0:02:19]} h6 {[%emt 0:02:19]} 6. Bxf6 {[%emt 0:01:06]} Qxf6 {[%emt 0:02:08]} 7. a3 {[%emt 0:01:13]} Bxc3+ {[%emt 0:02:26]} 8. bxc3 {[%emt 0:00:29]} d6 {[%emt 0:02:20]} 9. d4 Bg4 {[%emt 0:06:05]} 10. d5 {[%emt 0:03:56]} Ne7 {[%emt 0:01:36]} 11. Be2 {[%emt 0:00:27]} Ng6 {[%emt 0:02:13]} 12. h3 {[%emt 0:01:02]} Bxf3 {[%emt 0:02:14]} 13. Bxf3 {[%emt 0:00:22]} Nh4 {[%emt 0:02:03]} 14. O-O {[%emt 0:05:17]} O-O {[%emt 0:03:20]} 15. Rb1 {[%emt 0:02:39]} b6 {[%emt 0:02:06]} 16. Rb4 {[%emt 0:07:55]} a5 {[%emt 0:03:14]} 17. Rc4 {[%emt 0:01:38]} Rfc8 {[%emt 0:01:47]} 18. Bg4 {[%emt 0:00:47]} Rcb8 {[%emt 0:05:05]} 19. Rxc7 {[%emt 0:03:36]} g6 {[%emt 0:08:29]} 20. g3 {[%emt 0:03:57]} h5 {[%emt 0:02:34]} 21. Be2 {[%emt 0:00:14]} Qg5 {[%emt 0:01:46]} 22. Kh1 {[%emt 0:01:37]} Nf5 {[%emt 0:03:52]} 23. exf5 {[%emt 0:04:52]} Qxf5 {[%emt 0:01:26]} 24. Kh2 {[%emt 0:02:52]} h4 {[%emt 0:02:04]} 25. Bb5 {[%emt 0:07:33]} hxg3+ {[%emt 0:02:05]} 26. fxg3 {[%emt 0:00:11]} Qg5 {[%emt 0:01:14]} 27. Rfxf7 {[%emt 0:02:21]} Rc8 {[%emt 0:01:28]} 28. Rg7+ {[%emt 0:01:11]} Kh8 {[%emt 0:00:15]} 29. Rh7+ {[%emt 0:00:05]} Kg8 {[%emt 0:00:09]} 30. Rcg7+ {[%emt 0:00:19]} Kf8 {[%emt 0:00:24]} 31. Qf3+ {[%emt 0:00:30]} Qf5 {[%emt 0:00:31]} 32. Rf7+ {[%emt 0:00:43]} Kg8 {[%emt 0:00:36]} 33. Rxf5 {[%emt 0:00:11]} Kxh7 {[%emt 0:00:32]} 34. Rf7+ {[%emt 0:00:19]} Kg8 {[%emt 0:00:26]} 35. Qf6 {[%emt 0:00:11]} Rxc3 {[%emt 0:00:33]} 36. Qg7# {[%emt 0:00:06]} 1-0